bitfinex/quotes_SOLUSD_20251207
["timestamp","ask_amount","ask_price","bid_price","bid_amount"]
[1765142503092,7.38170812,135.47,135.42,19.92530217]
[1765142503292,8.14,135.46,135.42,19.92530217]
[1765142503692,8.14,135.46,135.43,0.71]
[1765142505505,15.52273514,135.46,135.43,0.71]
[1765142508522,0.69,135.45,135.42,0.01000001]
[1765142508694,8.14,135.44,135.42,0.01000001]
[1765142509626,15.5238183,135.44,135.42,0.01000001]
[1765142510221,123.25333486,135.48,135.43,4.31643816]
[1765142510405,8.14,135.47,135.43,4.31643816]
[1765142511597,7.38170812,135.47,135.44,4.32643816]
[1765142511797,8.14,135.46,135.44,4.32643816]
[1765142512004,8.14,135.46,135.44,3.60643816]
[1765142512619,8.14,135.46,135.43,3.60643816]
[1765142512823,8.14,135.46,135.43,4.32643816]
[1765142513019,109.06643816,135.45,135.42,0.01000001]
[1765142513216,8.14,135.44,135.42,0.01000001]
[1765142514129,7.38388835,135.43,135.42,0.01000001]
[1765142517134,15.52388835,135.43,135.42,0.01000001]
[1765142520737,18.45439921,135.47,135.42,0.73000001]
[1765142520915,8.14,135.46,135.43,3.60643816]
[1765142521235,15.52225306,135.46,135.42,4.33643817]
[1765142521530,8.14,135.46,135.43,4.30643816]
[1765142521719,8.14,135.45,135.43,4.30643816]
[1765142522031,8.14,135.45,135.44,0.7]
[1765142524244,15.52279808,135.45,135.44,0.7]
[1765142524625,8.14,135.45,135.44,0.7]
[1765142525944,8.14,135.45,135.42,0.01000001]
[1765142526113,34.69006216,135.45,135.42,0.71000001]
[1765142527015,7.38306696,135.45,135.42,0.71000001]
[1765142527341,8.14,135.44,135.42,0.71000001]
[1765142530422,8.14,135.44,135.42,4.31643817]
[1765142530856,8.14,135.44,135.43,0.7]
[1765142531621,16.23370132,135.44,135.42,0.01000001]
[1765142532245,15.52370132,135.44,135.42,0.01000001]
[1765142532443,7.38187411,135.47,135.43,4.30643816]
[1765142532622,7.38187411,135.47,135.44,3.60643816]
[1765142532623,15.52187411,135.47,135.44,3.60643816]
[1765142532821,15.52187411,135.47,135.44,4.30643816]
[1765142533024,15.52187411,135.47,135.45,0.7]
[1765142533841,15.52187411,135.47,135.45,4.30643816]
[1765142534043,0.71,135.5,135.46,3.60643816]
[1765142534343,15.52080393,135.49,135.46,4.30643816]
[1765142534532,15.52080393,135.49,135.47,0.7]
[1765142535449,0.71,135.48,135.45,0.7]
[1765142535644,7.38170812,135.47,135.45,0.7]
[1765142536933,26.54597843,135.47,135.43,4.30643816]
[1765142537131,26.54597843,135.47,135.42,8.81994493]
[1765142537132,8.85,135.46,135.42,8.81994493]
[1765142537446,8.85,135.46,135.43,0.7]
[1765142537627,8.14,135.46,135.42,0.01000001]
[1765142537826,0.71,135.45,135.42,0.01000001]
[1765142539251,7.38334317,135.44,135.42,0.01000001]
[1765142539545,8.14,135.43,135.42,0.01000001]
[1765142542045,15.52388835,135.43,135.42,0.01000001]
[1765142547447,16.21388835,135.43,135.42,0.01000001]
[1765142552256,18.52430176,135.43,135.42,0.01000001]
[1765142558563,15.52388835,135.43,135.42,0.01000001]
[1765142558862,16.21388835,135.43,135.42,0.01000001]
[1765142559762,8.07388835,135.43,135.42,0.01000001]
[1765142559963,16.21388835,135.43,135.42,0.01000001]
[1765142563555,15.52388835,135.43,135.42,0.01000001]
[1765142564266,0.69,135.42,135.35,0.1]
[1765142564446,0.69,135.42,135.36,10.38771224]
[1765142564447,8.14,135.41,135.36,10.38771224]
[1765142564759,8.14,135.41,135.37,2.31041341]
[1765142564954,8.14,135.41,135.37,3.00041341]
[1765142565160,8.14,135.41,135.38,0.69]
[1765142565767,7.38552437,135.4,135.38,0.69]
[1765142567248,8.16,135.41,135.39,2.31041341]
[1765142567648,8.16,135.41,135.4,0.69]
[1765142568351,8.16,135.41,135.39,0.69]
[1765142569169,7.38552437,135.4,135.38,0.69]
[1765142573754,15.52455702,135.42,135.39,2.31041341]
[1765142574170,15.52455702,135.42,135.4,0.68]
[1765142574762,15.52455702,135.42,135.4,0.18]
[1765142581182,104.8,135.44,135.41,2.31041341]
[1765142581373,120.9936962,135.44,135.41,2.31041341]
[1765142581571,120.9936962,135.44,135.41,2.99041341]
[1765142582377,120.9936962,135.44,135.4,0.68]
[1765142582562,120.9936962,135.44,135.4,2.99041341]
[1765142582762,0.67,135.43,135.39,2.31041341]
[1765142582982,8.14,135.42,135.38,2.31041341]
[1765142583187,8.14,135.42,135.38,2.99041341]
[1765142583188,7.38497895,135.41,135.38,2.99041341]
[1765142583386,8.14,135.4,135.38,2.99041341]
[1765142584588,8.14,135.4,135.38,2.31041341]
[1765142584889,8.14,135.4,135.39,0.68]
[1765142585388,15.52552437,135.4,135.38,2.99041341]
[1765142589989,18.46047124,135.43,135.39,2.99041341]
[1765142589990,7.38388835,135.43,135.39,2.99041341]
[1765142590190,8.14,135.42,135.39,19.29927741]
[1765142590390,8.14,135.42,135.4,0.68]
[1765142591093,8.14,135.42,135.4,2.99041341]
[1765142593178,8.14,135.42,135.39,23.69481135]
[1765142593384,16.308864,135.39,135.33,8.91594189]
[1765142593683,0.67,135.41,135.35,0.78]
[1765142593684,8.14,135.38,135.35,0.78]
[1765142593890,8.16,135.37,135.36,2.31041341]
[1765142594084,7.38541166,135.41,135.36,2.31041341]
[1765142594276,7.38451297,135.42,135.39,2.31041341]
[1765142594476,8.16,135.4,135.39,0.68]
[1765142594883,8.16,135.4,135.39,2.99041341]
[1765142596394,8.16,135.42,135.39,2.99041341]
[1765142596694,8.16,135.42,135.41,2.31041341]
[1765142597072,8.16,135.42,135.41,2.99041341]
[1765142597275,8.16,135.43,135.41,2.99041341]
[1765142597474,8.16,135.43,135.42,2.99041341]
[1765142597696,7.38170812,135.47,135.42,19.29927741]
[1765142597879,8.16,135.45,135.43,0.68]
[1765142598071,8.16,135.46,135.43,0.68]
[1765142598274,8.16,135.46,135.43,8.06376909]
[1765142598506,7.381264,135.48,135.43,8.06376909]
[1765142598798,8.16,135.47,135.44,0.68]
[1765142598994,8.16,135.48,135.44,0.68]
[1765142599177,8.16,135.48,135.46,2.31041341]
[1765142599581,8.16,135.48,135.46,2.99041341]
[1765142601486,8.16,135.48,135.44,0.7]
[1765142601687,8.16,135.48,135.46,2.31041341]
[1765142603605,0.58,135.47,135.44,2.31041341]
[1765142603778,0.58,135.47,135.43,3.01041341]
[1765142604798,0.58,135.47,135.43,4.30815831]
[1765142605398,34.57426621,135.48,135.44,4.30815831]
[1765142605579,0.58,135.47,135.43,4.30815831]
[1765142606207,0.58,135.47,135.44,3.60815831]
[1765142606889,7.96212332,135.47,135.44,4.30815831]
[1765142607089,7.96212332,135.47,135.43,3.60815831]
[1765142607290,7.96212332,135.47,135.43,4.30815831]
[1765142607987,0.58,135.46,135.41,3.60815831]
[1765142608304,8.16,135.45,135.41,4.30815831]
[1765142608681,8.74,135.45,135.41,4.30815831]
[1765142608883,16.12306769,135.45,135.42,4.30815831]
[1765142609086,15.54306769,135.45,135.42,4.30815831]
[1765142609286,8.16,135.45,135.44,3.60815831]
[1765142609508,8.16,135.45,135.43,4.30815831]
[1765142612010,8.16,135.45,135.43,0.7]
[1765142613010,15.54291311,135.45,135.43,0.7]
[1765142613396,8.16,135.45,135.43,4.30815831]
[1765142615118,104.8,135.46,135.44,4.30815831]
[1765142615310,112.94,135.46,135.45,3.60815831]
[1765142615509,112.94,135.46,135.45,4.30815831]
[1765142615711,8.14,135.46,135.45,4.30815831]
[1765142620226,7.38131292,135.48,135.45,4.30815831]
[1765142620406,8.14,135.47,135.46,0.7]
[1765142621898,8.14,135.47,135.46,4.30815831]
[1765142622129,15.52177929,135.47,135.44,0.7]
[1765142622311,15.52177929,135.47,135.45,4.30815831]
[1765142622628,8.14,135.47,135.45,4.30815831]
[1765142622832,8.14,135.47,135.46,0.7]
[1765142626510,8.14,135.47,135.45,3.60815831]
[1765142626712,8.14,135.47,135.46,0.7]
[1765142628754,15.52170812,135.47,135.43,7.38375177]
[1765142628938,15.52170812,135.47,135.45,3.60815831]
[1765142629140,8.14,135.47,135.45,3.60815831]
[1765142629341,8.14,135.47,135.46,0.7]
[1765142636757,8.14,135.47,135.45,4.26815831]
[1765142638073,8.14,135.47,135.46,0.66]
[1765142642754,15.52170812,135.47,135.46,0.66]
[1765142643364,15.52170812,135.47,135.44,4.31815831]
[1765142643567,16.10170812,135.47,135.44,4.31815831]
[1765142643775,15.52170812,135.47,135.45,0.71]
[1765142646989,0.58,135.46,135.41,4.31815831]
[1765142647174,4.18815831,135.46,135.39,4.31815831]
[1765142647369,7.38279808,135.45,135.39,11.70375199]
[1765142647571,8.14,135.44,135.4,0.71]
[1765142647766,29.55424601,135.47,135.43,3.60815831]
[1765142647966,8.14,135.46,135.43,3.60815831]
[1765142648180,8.14,135.46,135.44,0.71]
[1765142648681,7.38150342,135.48,135.44,0.71]
[1765142648887,15.52150342,135.48,135.46,3.60815831]
[1765142649262,15.52150342,135.48,135.46,4.31815831]
[1765142649459,15.52150342,135.48,135.44,4.31815831]
[1765142649660,16.10150342,135.48,135.44,4.31815831]
[1765142649855,16.10150342,135.48,135.45,0.71]
[1765142650060,16.10150342,135.48,135.44,3.60815831]
[1765142650255,16.10150342,135.48,135.44,4.31815831]
[1765142650479,0.58,135.47,135.44,0.71]
[1765142651576,7.96218739,135.47,135.44,0.71]
[1765142651962,0.58,135.46,135.41,4.31815831]
[1765142652164,8.14,135.45,135.41,4.31815831]
[1765142652363,8.14,135.45,135.42,0.71]
[1765142652579,8.72,135.45,135.42,0.71]
[1765142652772,8.14,135.45,135.42,0.71]
[1765142652977,8.14,135.45,135.42,4.31815831]
[1765142653381,8.14,135.45,135.43,0.71]
[1765142654888,8.14,135.45,135.43,4.31815831]
[1765142655364,8.14,135.45,135.44,0.71]
[1765142656664,16.308864,135.48,135.44,4.31815831]
[1765142656868,18.45224794,135.49,135.45,3.60815831]
[1765142656869,8.14,135.47,135.45,3.60815831]
[1765142657183,8.14,135.47,135.45,4.31815831]
[1765142657386,8.14,135.47,135.46,0.71]
[1765142658289,8.14,135.47,135.45,4.31815831]
[1765142658992,0.58,135.46,135.42,16.308864]
[1765142659296,3.60815831,135.45,135.4,0.71]
[1765142659484,8.14,135.44,135.4,0.71]
[1765142659994,8.72,135.44,135.4,0.71]
[1765142660567,16.10375857,135.44,135.4,0.71]
[1765142661389,0.58,135.43,135.39,24.37477495]
[1765142661583,0.58,135.43,135.39,27.98293326]
[1765142661790,0.58,135.43,135.4,0.68]
[1765142662178,7.96398062,135.43,135.4,0.68]
[1765142662668,7.38398062,135.43,135.4,4.28815831]
[1765142662868,7.96398062,135.43,135.38,0.68]
[1765142663493,0.58,135.42,135.38,4.28815831]
[1765142663672,8.16,135.41,135.38,0.68]
[1765142664186,15.54537351,135.41,135.38,0.68]
[1765142664385,15.54537351,135.41,135.38,4.28815831]
[1765142664585,15.54537351,135.41,135.38,0.68]
[1765142665793,15.54537351,135.41,135.38,2.99096888]
[1765142666003,15.54537351,135.41,135.38,0.68]
[1765142667385,16.12537351,135.41,135.38,0.68]
[1765142667580,15.54537351,135.41,135.38,0.68]
[1765142669098,15.54537351,135.41,135.38,2.99096888]
[1765142669301,15.54537351,135.41,135.39,0.68]
[1765142670099,8.16,135.41,135.39,0.68]
[1765142670294,112.18445688,135.42,135.39,0.68]
[1765142670504,8.16,135.41,135.39,2.99096888]
[1765142671180,8.16,135.41,135.4,0.68]
[1765142672278,15.54497895,135.41,135.4,0.68]
[1765142673006,8.16,135.41,135.4,0.68]
[1765142674315,104.8,135.42,135.4,0.68]
[1765142674521,8.16,135.42,135.4,2.99096888]
[1765142674695,104.8,135.45,135.41,11.1209138]
[1765142674896,8.16,135.45,135.41,9.48994492]
[1765142675198,8.16,135.45,135.42,2.99096888]
[1765142675595,8.16,135.45,135.43,0.68]
[1765142676012,15.54296427,135.45,135.43,0.68]
[1765142676184,15.54296427,135.45,135.42,0.68]
[1765142677491,16.12296427,135.45,135.41,0.68]
[1765142680108,17.85393315,135.45,135.39,2.31096888]
[1765142680315,0.58,135.44,135.4,0.68]
[1765142681800,0.58,135.44,135.4,2.99096888]
[1765142682007,7.38388835,135.43,135.4,2.99096888]
[1765142682210,7.38388835,135.43,135.41,0.68]
[1765142683504,7.38334317,135.44,135.41,0.68]
[1765142685912,112.18334317,135.44,135.41,0.68]
[1765142688309,112.76334317,135.44,135.41,0.68]
[1765142690622,8.14,135.43,135.41,0.68]
[1765142691623,15.52407218,135.43,135.39,2.31096888]
[1765142692721,15.52407218,135.43,135.39,9.69670942]
[1765142693526,15.52407218,135.43,135.39,10.37670942]
[1765142693723,8.14,135.43,135.4,8.06542255]
[1765142694031,8.14,135.43,135.4,10.37639143]
[1765142694328,8.14,135.43,135.41,2.31096888]
[1765142694924,8.14,135.43,135.4,10.37639143]
[1765142697029,8.14,135.45,135.42,2.31096888]
[1765142697417,8.14,135.45,135.42,2.99096888]
[1765142697900,8.14,135.45,135.43,2.99096888]
[1765142698224,8.14,135.45,135.44,2.31096888]
[1765142698609,8.14,135.45,135.44,2.99096888]
[1765142700137,8.14,135.47,135.44,2.99096888]
[1765142700307,8.14,135.47,135.44,2.31096888]
[1765142700509,8.14,135.47,135.43,9.69440504]
[1765142700706,8.14,135.47,135.43,10.37440504]
[1765142701910,8.14,135.47,135.44,2.31096888]
[1765142702609,15.5217994,135.47,135.44,2.31096888]
[1765142703618,15.5217994,135.47,135.43,7.38343616]
[1765142703823,0.71,135.46,135.41,9.6955302]
[1765142704035,105.51,135.46,135.42,2.31096888]
[1765142704522,104.8,135.46,135.43,3.02096888]
[1765142705416,104.8,135.46,135.44,2.31096888]
[1765142706530,104.8,135.46,135.44,9.6942762]
[1765142706729,104.8,135.46,135.44,10.4042762]
[1765142707140,8.14,135.47,135.45,2.31096888]
[1765142707642,8.14,135.47,135.46,2.31096888]
[1765142708149,7.38013197,135.5,135.46,10.40322194]
[1765142708343,8.14,135.49,135.46,10.40322194]
[1765142709133,8.14,135.49,135.46,9.69322194]
[1765142709335,8.14,135.49,135.47,2.31096888]
[1765142709855,8.14,135.49,135.46,10.40322194]
[1765142710624,8.14,135.49,135.47,0.71]
[1765142711421,8.14,135.49,135.46,10.40322194]
[1765142711822,8.14,135.49,135.47,0.71]
[1765142713844,8.09116327,135.48,135.43,0.71]
[1765142714152,8.09116327,135.48,135.44,2.31096888]
[1765142714322,7.38116327,135.48,135.44,2.31096888]
[1765142714524,0.71,135.47,135.44,3.02096888]
[1765142714734,8.14,135.46,135.44,3.02096888]
[1765142718023,8.14,135.46,135.44,2.31096888]
[1765142718226,0.71,135.45,135.42,9.69522103]
[1765142718450,0.71,135.45,135.42,2.31096888]
[1765142720044,7.38334317,135.44,135.4,2.31096888]
[1765142720250,8.14,135.43,135.39,9.69701846]
[1765142720429,8.85,135.43,135.39,9.69701846]
[1765142720635,0.71,135.42,135.39,10.40701846]
[1765142722966,8.8,135.43,135.41,2.31096888]
[1765142723865,8.8,135.43,135.4,10.38639806]
[1765142725470,8.8,135.43,135.4,3.00096888]
[1765142725767,8.14,135.43,135.41,3.00096888]
[1765142725966,8.14,135.45,135.42,2.31096888]
[1765142726264,8.14,135.45,135.43,0.69]
[1765142727073,8.8,135.45,135.42,3.6081726]
[1765142727247,8.8,135.45,135.42,4.2981726]
[1765142728254,16.18291338,135.45,135.42,0.69]
[1765142729264,7.38204602,135.47,135.44,3.6081726]
[1765142729475,7.38204602,135.47,135.45,0.69]
[1765142729656,8.04204602,135.47,135.44,4.2981726]
[1765142730061,8.04204602,135.47,135.44,0.69]
[1765142733266,0.66,135.46,135.43,10.99175004]
[1765142733466,0.66,135.46,135.43,8.07357744]
[1765142734385,0.66,135.46,135.43,7.38357744]
[1765142734569,0.66,135.46,135.44,0.69]
[1765142735081,8.04204602,135.47,135.44,0.69]
[1765142736573,7.38204602,135.47,135.44,0.69]
[1765142736896,7.38204602,135.47,135.41,18.46244738]
[1765142736897,0.66,135.46,135.41,11.68282008]
[1765142737069,0.66,135.46,135.42,0.69]
[1765142737278,8.14,135.45,135.41,11.68282008]
[1765142737574,8.14,135.45,135.42,0.69]
[1765142737781,8.8,135.45,135.42,0.69]
[1765142739293,16.18300747,135.45,135.42,0.69]
[1765142741986,15.52300747,135.45,135.42,0.69]
[1765142742291,0.66,135.44,135.42,0.69]
[1765142742780,16.18300747,135.45,135.42,0.69]
[1765142745171,16.18300747,135.45,135.42,4.2981726]
[1765142751307,16.18300747,135.45,135.42,0.69]
[1765142753101,15.52300747,135.45,135.42,0.69]
[1765142753305,131.35180384,135.44,135.39,8.09606693]
[1765142753603,8.14,135.43,135.39,4.3181726]
[1765142753779,8.85,135.43,135.4,0.71]
[1765142753980,0.71,135.42,135.4,0.71]
[1765142755607,8.09448944,135.42,135.4,0.71]
[1765142756992,0.7,135.41,135.38,8.09623266]
[1765142757197,8.08448944,135.42,135.39,0.71]
[1765142757708,8.08448944,135.42,135.37,20.16431692]
[1765142757709,16.22509433,135.41,135.37,28.01408063]
[1765142758013,16.22509433,135.41,135.37,24.40590803]
[1765142758193,15.52509433,135.41,135.38,0.71]
[1765142758392,0.7,135.4,135.38,0.71]
[1765142758796,0.7,135.4,135.37,10.99521663]
[1765142758999,0.7,135.4,135.37,11.70521663]
[1765142759189,8.0855806,135.4,135.37,3.6081726]
[1765142759389,8.0855806,135.4,135.37,4.3181726]
[1765142760013,8.84,135.39,135.37,0.71]
[1765142760197,8.84,135.39,135.35,11.8063212]
[1765142760520,8.84,135.39,135.36,4.3181726]
[1765142762316,8.14,135.41,135.38,3.6081726]
[1765142762503,8.14,135.41,135.39,3.6081726]
[1765142762989,8.14,135.41,135.4,0.71]
[1765142763813,8.14,135.41,135.4,4.3181726]
[1765142764013,0.7,135.45,135.4,4.3181726]
[1765142764316,8.14,135.45,135.42,3.6081726]
[1765142764492,16.22284673,135.45,135.41,8.09459453]
[1765142764694,16.22284673,135.45,135.42,0.71]
[1765142764919,16.22284673,135.45,135.42,4.3181726]
[1765142765631,8.14,135.45,135.43,4.3181726]
[1765142766919,8.14,135.45,135.42,7.38429659]
[1765142766920,8.84,135.45,135.42,7.38429659]
[1765142767106,8.14,135.45,135.43,4.3181726]
[1765142768324,8.14,135.45,135.44,4.3181726]
[1765142769316,8.14,135.45,135.42,8.80994492]
[1765142769520,8.14,135.45,135.43,3.6081726]
[1765142769721,8.14,135.45,135.43,4.3181726]
[1765142771498,8.14,135.45,135.43,0.71]
[1765142774229,8.14,135.45,135.44,3.6081726]
[1765142774424,8.14,135.45,135.43,4.3181726]
[1765142775229,0.7,135.44,135.4,3.6081726]
[1765142775404,0.7,135.44,135.39,4.3181726]
[1765142775598,26.48194103,135.44,135.39,0.71]
[1765142775800,26.48194103,135.44,135.39,8.09602291]
[1765142776025,0.7,135.43,135.39,8.09602291]
[1765142776218,8.14,135.42,135.39,8.09602291]
[1765142776930,8.14,135.42,135.4,0.71]
[1765142777145,8.84,135.42,135.39,8.09602291]
[1765142778429,16.2245933,135.42,135.39,0.71]
[1765142781851,32.5334573,135.42,135.39,0.71]
[1765142782150,0.69,135.41,135.38,10.99467403]
[1765142782325,0.69,135.41,135.38,11.70467403]
[1765142782525,0.69,135.41,135.39,0.71]
[1765142783950,31.8334573,135.42,135.39,0.71]
[1765142784333,0.69,135.41,135.38,11.70467403]
[1765142784530,0.69,135.41,135.38,0.71]
[1765142784531,8.07506337,135.41,135.38,0.71]
[1765142784833,8.14,135.4,135.36,7.38755377]
[1765142785038,8.83,135.4,135.35,11.80603014]
[1765142785239,0.69,135.39,135.35,11.80603014]
[1765142785426,0.69,135.39,135.35,11.09603014]
[1765142785629,0.69,135.39,135.36,0.71]
[1765142786545,0.69,135.39,135.36,8.0976796]
[1765142788041,38.39448195,135.4,135.37,0.71]
[1765142788240,0.69,135.39,135.37,0.71]
[1765142789259,38.39448195,135.4,135.37,0.71]
[1765142791163,37.70448195,135.4,135.37,0.71]
[1765142791347,38.39448195,135.4,135.37,0.71]
[1765142791741,0.69,135.39,135.36,16.308864]
[1765142791954,0.69,135.39,135.35,0.1]
[1765142792162,0.69,135.39,135.35,0.81]
[1765142792347,18.47410474,135.38,135.35,0.81]
[1765142792752,19.16410474,135.38,135.35,0.81]
[1765142793759,8.07653427,135.39,135.35,0.81]
[1765142794267,8.83,135.38,135.35,0.1]
[1765142794440,0.69,135.37,135.35,0.1]
[1765142795345,8.14,135.36,135.35,0.1]
[1765142795545,30.32524681,135.36,135.35,0.1]
[1765142795741,38.40295366,135.36,135.35,0.1]
[1765142799250,15.52770685,135.36,135.35,0.1]
[1765142799463,32.52657085,135.36,135.35,0.1]
[1765142799657,31.83657085,135.36,135.35,0.1]
[1765142799958,16.21770685,135.36,135.35,0.1]
[1765142801657,34.68697398,135.36,135.29,0.81]
[1765142801969,0.69,135.35,135.31,2.31176549]
[1765142802169,8.14,135.34,135.29,0.81]
[1765142802372,7.38934456,135.33,135.31,2.31176549]
[1765142802572,14.7813387,135.33,135.31,2.31176549]
[1765142803151,15.4713387,135.33,135.29,0.81]
[1765142803473,15.4713387,135.33,135.32,2.31176549]
[1765142803474,7.39199414,135.33,135.32,2.31176549]
[1765142803661,8.83,135.36,135.32,18.62062949]
[1765142803853,7.39199414,135.35,135.33,2.31176549]
[1765142804171,8.83,135.36,135.33,0.71]
[1765142804351,8.14,135.36,135.35,2.31176549]
[1765142804754,8.14,135.36,135.35,19.33062949]
[1765142805370,0.69,135.37,135.34,3.02176549]
[1765142805950,8.07729968,135.37,135.34,16.308864]
[1765142806350,0.69,135.36,135.34,16.308864]
[1765142806569,8.14,135.35,135.34,16.308864]
[1765142806769,8.14,135.35,135.31,9.51994492]
[1765142806977,8.83,135.35,135.32,3.02176549]
[1765142807548,8.83,135.35,135.33,2.31176549]
[1765142808164,8.83,135.35,135.32,2.31176549]
[1765142808372,8.14,135.35,135.32,3.02176549]
[1765142808782,8.14,135.35,135.33,3.02176549]
[1765142811088,8.14,135.35,135.33,2.31176549]
[1765142811285,8.84,135.35,135.33,2.31176549]
[1765142811488,8.14,135.35,135.33,3.02176549]
[1765142815095,8.84,135.35,135.33,3.02176549]
[1765142815290,8.14,135.35,135.33,3.02176549]
[1765142815488,0.7,135.34,135.32,2.31176549]
[1765142815698,0.7,135.34,135.3,8.10077922]
[1765142815888,0.7,135.34,135.31,3.02176549]
[1765142816094,0.7,135.34,135.31,0.71]
[1765142817082,0.7,135.34,135.31,3.02176549]
[1765142817679,8.84,135.35,135.32,3.00176549]
[1765142818771,0.7,135.35,135.34,16.308864]
[1765142818974,8.14,135.35,135.34,16.308864]
[1765142819175,8.84,135.35,135.34,16.308864]
[1765142819897,8.14,135.35,135.34,16.998864]
[1765142820098,8.14,135.35,135.34,16.308864]
[1765142820288,8.14,135.35,135.34,16.998864]
[1765142820888,8.14,135.35,135.34,19.31062949]
[1765142821300,8.14,135.35,135.34,16.998864]
[1765142821701,8.84,135.35,135.34,16.308864]
[1765142822213,8.14,135.35,135.34,16.308864]
[1765142823088,8.84,135.35,135.29,18.57861754]
[1765142823406,0.7,135.34,135.29,0.1]
[1765142823611,8.14,135.33,135.29,0.1]
[1765142824013,0.7,135.32,135.29,0.1]
[1765142824599,0.7,135.32,135.29,0.79]
[1765142824797,0.7,135.32,135.29,3.10176549]
[1765142825001,0.7,135.32,135.29,0.1]
[1765142825811,0.7,135.32,135.29,16.408864]
[1765142826011,0.7,135.32,135.29,0.1]
[1765142827211,10.40174586,135.32,135.29,0.1]
[1765142827402,104.8,135.31,135.29,0.1]
[1765142827711,8.14,135.3,135.29,0.1]
[1765142827895,8.84,135.3,135.29,0.1]
[1765142828223,25.148864,135.3,135.29,0.1]
[1765142831015,34.85161249,135.3,135.29,0.1]
[1765142831316,32.539847,135.3,135.29,0.1]
[1765142832296,43.66155741,135.3,135.29,0.1]
[1765142832821,32.539847,135.3,135.29,0.1]
[1765142834222,34.85161249,135.3,135.29,0.1]
[1765142834517,32.539847,135.3,135.29,0.1]
[1765142836620,16.308864,135.3,135.29,0.79]
[1765142836811,8.14,135.3,135.29,0.79]
[1765142839931,8.14,135.3,135.29,0.1]
[1765142842943,8.86,135.3,135.29,0.1]
[1765142843834,16.250983,135.3,135.29,0.1]
[1765142844231,33.219847,135.3,135.29,0.1]
[1765142850540,25.108864,135.3,135.29,0.1]
[1765142850725,8.14,135.3,135.29,0.1]
[1765142851041,8.14,135.3,135.29,0.76]
[1765142851540,8.14,135.3,135.29,0.1]
[1765142852116,16.308864,135.27,135.25,0.1]
[1765142852314,8.16,135.26,135.25,0.1]
[1765142852529,12.02005026,135.26,135.25,0.1]
[1765142853119,8.16,135.26,135.25,0.1]
[1765142856068,8.16,135.26,135.25,0.76]
[1765142860165,8.16,135.26,135.25,4.37685849]
[1765142860366,8.16,135.26,135.25,0.76]
[1765142862170,8.16,135.26,135.25,0.1]
[1765142862171,8.88,135.26,135.25,0.1]
[1765142863064,8.16,135.26,135.25,0.1]
[1765142863265,8.16,135.26,135.25,0.76]
[1765142887286,29.5910207,135.3,135.25,4.37685849]
[1765142887493,8.16,135.31,135.29,3.61685849]
[1765142888011,8.16,135.31,135.29,0.66]
[1765142888905,8.16,135.32,135.3,3.61685849]
[1765142889102,8.16,135.32,135.31,3.61685849]
[1765142889509,8.08786526,135.36,135.31,4.27685849]
[1765142889810,8.16,135.35,135.33,3.61685849]
[1765142890204,8.86,135.35,135.33,3.61685849]
[1765142890522,0.7,135.34,135.31,4.27685849]
[1765142890694,8.0889023,135.34,135.31,3.61685849]
[1765142891211,0.7,135.33,135.31,3.61685849]
[1765142891416,8.16,135.32,135.31,3.61685849]
[1765142892118,8.16,135.32,135.31,4.27685849]
[1765142893504,16.24990451,135.32,135.27,0.66]
[1765142893704,0.7,135.31,135.28,4.27685849]
[1765142893899,0.7,135.31,135.28,0.66]